bitfinex/quotes_SOLUSD_20220311
["timestamp","ask_amount","ask_price","bid_price","bid_amount"]
[1646968894686,6.105,81.915,81.88,18.313]
[1646968894888,6.105,81.919,81.88,18.313]
[1646968895085,6.105,81.919,81.87,18.3155]
[1646968896088,6.0,81.918,81.87,18.3155]
[1646968896288,6.105,81.917,81.87,18.3155]
[1646968896489,6.0,81.916,81.87,18.3155]
[1646968896689,6.105,81.915,81.87,18.3155]
[1646968896891,6.0,81.914,81.87,18.3155]
[1646968897088,6.105,81.917,81.87,18.3155]
[1646968897313,13.78448667,81.92,81.88,18.3133]
[1646968897492,6.0,81.919,81.88,18.3133]
[1646968897690,13.78448667,81.92,81.88,18.3133]
[1646968898990,6.0,81.919,81.88,18.3133]
[1646968899190,13.78448667,81.92,81.88,18.3133]
[1646968899993,6.0,81.919,81.88,18.3133]
[1646968900192,13.78448667,81.92,81.88,18.3133]
[1646968900993,12.105,81.919,81.88,18.3133]
[1646968901191,6.105,81.919,81.88,18.3133]
[1646968901391,6.0,81.918,81.88,18.3133]
[1646968901595,6.0,81.917,81.88,18.3133]
[1646968901792,6.105,81.919,81.88,18.3133]
[1646968902192,6.105,81.919,81.87,18.3151]
[1646968902193,6.0,81.918,81.87,18.3151]
[1646968902392,6.105,81.919,81.87,18.3151]
[1646968902994,6.0,81.918,81.871,6.0]
[1646968903193,6.105,81.919,81.871,6.0]
[1646968903994,6.0,81.918,81.87,18.3151]
[1646968904195,6.105,81.919,81.87,18.3151]
[1646968904922,6.105,81.919,81.88,18.3129]
[1646968906321,6.0,81.918,81.88,18.3129]
[1646968906521,6.105,81.917,81.88,18.3129]
[1646968906724,6.105,81.919,81.88,18.3129]
[1646968907121,6.0,81.918,81.88,18.3129]
[1646968907420,6.105,81.917,81.88,18.3129]
[1646968907623,6.105,81.919,81.88,18.3129]
[1646968907820,13.78448667,81.92,81.88,18.3129]
[1646968909521,6.105,81.919,81.88,18.3129]
[1646968909930,6.0,81.918,81.88,18.3129]
[1646968910226,6.105,81.919,81.88,18.3129]
[1646968910821,6.0,81.918,81.88,18.3129]
[1646968911021,6.0,81.917,81.88,18.3129]
[1646968911223,6.105,81.919,81.88,18.3129]
[1646968911423,6.0,81.918,81.88,18.3129]
[1646968911624,6.105,81.917,81.88,18.3129]
[1646968911825,6.105,81.919,81.88,18.3129]
[1646968912024,13.78448667,81.92,81.88,18.3129]
[1646968912625,6.0,81.919,81.88,18.3129]
[1646968912828,13.78448667,81.92,81.88,18.3129]
[1646968913526,6.0,81.919,81.88,18.3129]
[1646968913726,13.78448667,81.92,81.88,18.3129]
[1646968914128,6.0,81.919,81.88,18.3129]
[1646968914928,13.78448667,81.92,81.88,18.3129]
[1646968915629,6.105,81.919,81.88,18.3129]
[1646968917130,6.0,81.918,81.88,18.3129]
[1646968917435,6.105,81.917,81.88,18.3129]
[1646968917634,6.105,81.919,81.88,18.3129]
[1646968918232,6.0,81.918,81.88,18.3129]
[1646968918430,6.105,81.917,81.88,18.3129]
[1646968918636,6.105,81.919,81.88,18.3129]
[1646968919133,6.0,81.918,81.88,18.3129]
[1646968919333,6.105,81.919,81.88,18.3129]
[1646968920141,6.0,81.918,81.88,18.3129]
[1646968920337,6.105,81.919,81.88,18.3129]
[1646968920534,6.0,81.918,81.88,18.3129]
[1646968920736,6.105,81.919,81.88,18.3129]
[1646968921138,6.0,81.918,81.88,18.3129]
[1646968921333,6.105,81.917,81.88,18.3129]
[1646968921536,6.105,81.919,81.88,18.3129]
[1646968921936,6.0,81.918,81.88,18.3129]
[1646968922135,6.105,81.917,81.88,18.3129]
[1646968922738,6.105,81.919,81.88,18.3129]
[1646968923937,6.0,81.918,81.88,18.3129]
[1646968924137,6.105,81.917,81.88,18.3129]
[1646968924336,6.105,81.919,81.88,18.3129]
[1646968926647,6.0,81.918,81.88,18.3129]
[1646968928647,6.105,81.917,81.88,18.3129]
[1646968928848,6.0,81.916,81.88,18.3129]
[1646968929048,6.0,81.918,81.88,18.3129]
[1646968929248,6.105,81.917,81.88,18.3129]
[1646968929449,6.0,81.916,81.88,18.3129]
[1646968929650,6.105,81.919,81.88,18.3129]
[1646968930554,6.0,81.918,81.88,18.3129]
[1646968930751,6.105,81.919,81.88,18.3129]
[1646968930952,6.0,81.918,81.88,18.3129]
[1646968931177,6.105,81.919,81.88,18.3129]
[1646968931374,6.105,81.924,81.88,18.3129]
[1646968932075,60.83264585,81.923,81.89,18.311]
[1646968932276,54.83264585,81.923,81.891,27.16822688]
[1646968932575,6.0,81.922,81.891,27.16822688]
[1646968932780,54.83264585,81.923,81.891,27.16822688]
[1646968932975,22.6876,81.925,81.891,27.16822688]
[1646968933879,48.4729005,81.924,81.891,27.16822688]
[1646968934983,6.0,81.923,81.891,27.16822688]
[1646968935179,48.4729005,81.924,81.891,27.16822688]
[1646968935378,6.0,81.923,81.891,27.16822688]
[1646968935580,48.4729005,81.924,81.891,27.16822688]
[1646968936481,6.0,81.923,81.891,27.16822688]
[1646968936680,22.6876,81.925,81.891,27.16822688]
[1646968937682,60.75329717,81.924,81.891,27.16822688]
[1646968943899,60.75329717,81.924,81.89,18.311]
[1646968944092,6.104,81.923,81.87,18.3141]
[1646968944890,6.104,81.923,81.871,58.57299039]
[1646968945092,6.0,81.922,81.871,58.57299039]
[1646968945291,6.105,81.921,81.871,58.57299039]
[1646968945492,6.0,81.92,81.871,58.57299039]
[1646968945692,6.105,81.919,81.871,58.57299039]
[1646968946100,6.0,81.918,81.871,58.57299039]
[1646968946294,6.105,81.917,81.871,58.57299039]
[1646968946495,6.0,81.916,81.88,18.313]
[1646968946693,23.42,81.915,81.88,18.313]
[1646968947893,6.105,81.914,81.88,18.313]
[1646968948293,23.42,81.915,81.88,18.313]
[1646968948495,6.0,81.914,81.88,18.313]
[1646968948694,23.42,81.915,81.89,18.3109]
[1646968949095,23.42,81.915,81.871,58.57299039]
[1646968949294,23.42,81.915,81.872,6.0]
[1646968949595,6.105,81.914,81.871,58.57299039]
[1646968949825,23.42,81.915,81.871,58.57299039]
[1646968949995,6.0,81.914,81.872,6.0]
[1646968950206,23.42,81.915,81.872,17.76853505]
[1646968950595,23.42,81.915,81.872,6.0]
[1646968950796,23.42,81.915,81.88,18.3126]
[1646968952502,23.42,81.915,81.871,58.57299039]
[1646968952701,23.42,81.915,81.872,6.0]
[1646968954001,23.42,81.915,81.88,18.3132]
[1646968954304,23.42,81.915,81.872,6.0]
[1646968954801,23.42,81.915,81.873,11.77379153]
[1646968955504,23.42,81.915,81.872,6.0]
[1646968955903,6.105,81.914,81.872,6.0]
[1646968956113,6.105,81.914,81.866,6.0]
[1646968956305,6.0,81.913,81.862,6.0]
[1646968956507,6.105,81.912,81.861,6.105]
[1646968956808,6.0,81.911,81.861,6.105]
[1646968957005,6.106,81.91,81.846,48.40185519]
[1646968957204,6.0,81.909,81.846,48.40185519]
[1646968957414,6.106,81.908,81.846,48.40185519]
[1646968957605,6.0,81.907,81.85,18.3202]
[1646968957806,6.106,81.906,81.85,18.3202]
[1646968958012,6.0,81.905,81.85,18.3202]
[1646968958207,6.106,81.904,81.85,18.3202]
[1646968958406,30.2581,81.903,81.85,18.3202]
[1646968958607,6.106,81.902,81.85,18.3202]
[1646968958806,6.0,81.901,81.85,18.3202]
[1646968959008,6.106,81.9,81.85,18.3202]
[1646968959208,14.82181081,81.898,81.85,18.3202]
[1646968959409,12.106,81.897,81.85,18.3202]
[1646968960210,6.0,81.897,81.86,18.3182]
[1646968960413,6.0,81.897,81.847,23.2196]
[1646968960612,6.0,81.902,81.848,6.0]
[1646968961013,6.0,81.902,81.849,11.76769655]
[1646968961209,6.106,81.901,81.85,6.0]
[1646968961410,58.64839257,81.9,81.85,6.0]
[1646968961609,58.64839257,81.9,81.851,11.76769655]
[1646968962013,58.64839257,81.9,81.86,18.3181]
[1646968962210,58.64839257,81.9,81.847,23.2196]
[1646968962412,6.106,81.899,81.847,23.2196]
[1646968962612,6.0,81.898,81.847,23.2196]
[1646968962814,6.107,81.897,81.847,23.2196]
[1646968963012,6.0,81.896,81.847,23.2196]
[1646968963212,6.107,81.895,81.847,23.2196]
[1646968963412,6.0,81.894,81.847,23.2196]
[1646968963616,30.0607,81.893,81.847,23.2196]
[1646968963815,6.0,81.892,81.847,23.2196]
[1646968964015,6.107,81.891,81.847,23.2196]
[1646968964415,6.107,81.892,81.847,23.2196]
[1646968964937,6.107,81.892,81.85,18.3191]
[1646968965136,23.9537,81.893,81.847,23.2196]
[1646968965332,23.9537,81.893,81.848,6.0]
[1646968966133,23.9537,81.893,81.86,18.3184]
[1646968967135,6.106,81.892,81.86,18.3184]
[1646968968038,6.106,81.892,81.85,18.3199]
[1646968968245,6.106,81.892,81.851,6.0]
[1646968968437,6.106,81.892,81.85,18.3199]
[1646968971942,6.0,81.891,81.85,18.3199]
[1646968972141,6.107,81.89,81.85,18.3199]
[1646968972341,6.107,81.892,81.85,18.3199]
[1646968973044,6.107,81.892,81.86,18.3183]
[1646968973542,6.107,81.892,81.846,52.80972409]
[1646968974243,6.107,81.892,81.85,18.3191]
[1646968975444,6.0,81.891,81.85,18.3191]
[1646968975644,6.107,81.89,81.85,18.3191]
[1646968976255,6.107,81.892,81.85,18.3191]
[1646968976855,6.107,81.892,81.846,52.80972409]
[1646968977151,23.9537,81.893,81.847,6.0]
[1646968977556,23.9537,81.893,81.848,11.75697801]
[1646968977755,23.9537,81.893,81.849,6.0]
[1646968978458,23.9537,81.893,81.85,11.75697801]
[1646968978657,23.9537,81.893,81.88,18.3138]
[1646968978857,23.7696,81.909,81.88,18.3138]
[1646968978858,6.106,81.908,81.88,18.3138]
[1646968979258,23.7696,81.909,81.88,18.3138]
[1646968979662,23.7696,81.909,81.881,30.03516791]
[1646968982167,23.7696,81.909,81.881,29.53516791]
[1646968983370,23.7696,81.909,81.87,18.3155]
[1646968983588,24.6858,81.908,81.87,18.3155]
[1646968986191,6.105,81.907,81.87,18.3155]
[1646968986992,6.105,81.907,81.87,17.8155]
[1646968988595,6.105,81.907,81.87,17.3155]
[1646968988994,6.0,81.906,81.87,17.3155]
[1646968989194,6.105,81.905,81.87,17.3155]
[1646968989395,6.105,81.907,81.87,17.3155]
[1646968989996,24.6858,81.908,81.87,17.3155]
[1646968990401,24.6858,81.908,81.871,63.59567259]
[1646968991400,24.6858,81.908,81.87,17.3155]
[1646968991600,6.105,81.907,81.87,17.3155]
[1646968994611,6.0,81.906,81.87,17.3155]
[1646968994832,6.105,81.905,81.87,17.3155]
[1646968995010,6.105,81.907,81.87,17.3155]
[1646968996007,6.105,81.907,81.871,6.0]
[1646968996207,6.105,81.907,81.861,83.81435787]
[1646968996410,24.6858,81.908,81.881,21.22473413]
[1646968997812,49.81270959,81.913,81.881,21.22473413]
[1646968998016,49.81270959,81.913,81.89,18.3119]
[1646969001129,49.81270959,81.913,81.871,23.593]
[1646969001322,49.81270959,81.913,81.88,18.3136]
[1646969003448,49.81270959,81.913,81.89,18.3119]
[1646969005046,6.105,81.927,81.89,18.3119]
[1646969005545,6.105,81.927,81.9,18.3094]
[1646969006146,53.2487355,81.925,81.9,18.3094]
[1646969008754,22.9433,81.928,81.9,18.3094]
[1646969008950,23.9459,81.941,81.899,6.21]
[1646969009150,6.0,81.978,81.9,6.0]
[1646969009349,3.04447957,81.972,81.9,6.0]
[1646969009555,12.102,81.971,81.9,6.0]
[1646969009757,60.9078523,81.97,81.9,6.0]
[1646969009953,29.9459,81.969,81.9,6.0]
[1646969010150,52.61917861,81.969,81.92,18.3034]
[1646969010649,22.67327861,81.968,81.9,61.0148]
[1646969010849,6.0,81.967,81.901,6.0]
[1646969011253,22.67327861,81.966,81.911,21.13292025]
[1646969011550,6.0,81.965,81.912,24.4226]
[1646969011851,22.67327861,81.964,81.912,24.4226]
[1646969012051,6.0,81.963,81.912,24.4226]
[1646969012351,6.102,81.962,81.912,24.4226]
[1646969012551,6.0,81.961,81.912,24.4226]
[1646969012751,30.5988,81.96,81.912,24.4226]
[1646969012950,6.0,81.959,81.912,24.4226]
[1646969013152,6.102,81.958,81.912,24.4226]
[1646969013350,6.102,81.958,81.9,18.3083]
[1646969013351,21.16725568,81.957,81.9,18.3083]
[1646969013649,6.102,81.956,81.9,18.3083]
[1646969013852,6.0,81.955,81.9,18.3083]
[1646969014150,6.102,81.954,81.9,18.3083]
[1646969014352,6.0,81.953,81.9,18.3083]
[1646969014551,6.103,81.952,81.911,33.49364776]
[1646969014754,6.0,81.951,81.911,33.49364776]
[1646969014957,6.102,81.95,81.911,33.49364776]
[1646969015151,6.0,81.949,81.911,33.49364776]
[1646969015450,6.102,81.948,81.911,33.49364776]
[1646969015651,6.102,81.956,81.911,33.49364776]
[1646969015851,6.0,81.955,81.911,33.49364776]
[1646969016051,30.7554,81.954,81.911,33.49364776]
[1646969016252,6.0,81.953,81.911,33.49364776]
[1646969016454,6.102,81.952,81.911,33.49364776]
[1646969016656,6.0,81.951,81.911,33.49364776]
[1646969017253,6.102,81.953,81.92,18.305]
[1646969017453,24.6534,81.954,81.92,18.305]
[1646969019756,24.6534,81.954,81.92,17.805]
[1646969019956,6.0,81.953,81.92,17.805]
[1646969020159,24.6534,81.954,81.92,17.805]
[1646969020955,6.0,81.953,81.92,17.805]
[1646969021155,24.6534,81.954,81.92,17.805]
[1646969022356,24.6534,81.954,81.912,23.3054]
[1646969022555,537.7078,81.98,81.913,6.0]
[1646969022556,6.102,81.977,81.913,6.0]
[1646969022759,6.0,81.976,81.913,6.0]
[1646969023357,62.81920642,81.975,81.913,6.0]
[1646969023562,6.0,81.974,81.914,3.29447957]
[1646969023758,6.0,81.974,81.915,6.0]
[1646969023958,6.0,81.979,81.916,0.25]
[1646969024363,6.0,81.979,81.916,27.82068339]
[1646969024559,6.0,81.979,81.96,18.2948]
[1646969025966,6.099,82.01,81.96,18.2948]
[1646969026166,6.0,82.009,81.97,18.2934]
[1646969026373,62.76753429,82.008,81.97,18.2934]
[1646969026671,6.0,82.007,81.97,18.2934]
[1646969026869,30.7862,82.006,81.97,18.2934]
[1646969027071,6.0,82.005,81.951,24.2123]
[1646969027271,6.099,82.004,81.96,18.2959]
[1646969027471,6.0,82.003,81.96,18.2959]
[1646969027668,6.098,82.002,81.96,18.2959]
[1646969027872,6.0,82.001,81.96,18.2959]
[1646969028070,6.099,82.0,81.96,18.2959]
[1646969028270,6.0,81.999,81.96,18.2959]
[1646969028472,6.099,81.998,81.96,18.2959]
[1646969028669,6.0,81.997,81.96,18.2959]
[1646969029072,24.5587,81.996,81.96,18.2959]
[1646969029274,25.40557369,81.995,81.96,18.2959]
[1646969034375,25.40557369,81.995,81.97,18.294]
[1646969036501,6.0,81.995,81.97,40.30700425]
[1646969036705,6.0,81.995,81.97,22.01300425]
[1646969036910,30.0979,82.016,81.97,29.17300425]
[1646969037203,6.098,82.015,81.97,29.17300425]
[1646969037403,48.05254808,82.013,81.97,29.17300425]
[1646969037604,6.0,82.012,81.97,29.17300425]
[1646969038006,6.0,82.012,81.971,6.0]
[1646969038204,6.0,82.012,81.98,18.2913]
[1646969038904,6.0,82.012,81.971,23.9749]
[1646969039304,6.0,82.012,81.99,18.2878]
[1646969040504,6.0,82.025,81.99,18.2878]
[1646969040705,6.097,82.024,81.99,18.2878]
[1646969041004,6.0,82.023,81.99,18.2878]
[1646969041205,69.91911713,82.022,81.99,18.2878]
[1646969041406,6.0,82.021,81.99,18.2878]
[1646969042006,3.04447957,82.026,81.99,18.2878]
[1646969042205,3.04447957,82.026,82.0,18.2873]
[1646969043008,59.6207561,82.025,81.989,50.26527261]
[1646969043207,3.04447957,82.026,82.0,18.2851]
[1646969043408,3.04447957,82.026,81.989,50.26527261]
[1646969043605,3.04447957,82.04,81.989,50.26527261]
[1646969043805,12.096,82.039,81.989,50.26527261]
[1646969044208,60.3352071,82.038,81.989,50.26527261]
[1646969044406,12.096,82.037,81.99,18.2889]
[1646969044708,37.81375818,82.037,81.981,24.0372]
[1646969044905,3.04447957,82.036,81.981,24.0372]
[1646969045107,12.096,82.035,81.981,24.0372]
[1646969045307,34.76927861,82.035,81.981,24.0372]
[1646969045509,3.04447957,82.034,81.981,24.0372]
[1646969045708,12.097,82.033,81.981,24.0372]
[1646969046207,28.02957957,82.032,81.981,24.0372]
[1646969046408,12.097,82.031,81.955,23.8302]
[1646969046708,14.54,82.03,81.956,22.6502]
[1646969046909,12.098,82.029,81.956,22.6502]
[1646969047111,15.14247957,82.029,81.956,22.6502]
[1646969047311,38.28131962,82.028,81.956,70.40303459]
[1646969047508,12.098,82.027,81.96,18.2959]
[1646969047709,53.42379919,82.027,81.96,18.2959]
[1646969047908,14.11706697,82.026,81.96,18.2959]
[1646969048111,12.098,82.025,81.96,18.2959]
[1646969048310,18.78438045,82.024,81.96,18.2959]
[1646969048512,12.098,82.023,81.96,18.2959]
[1646969048717,35.52561661,82.023,81.96,18.2959]
[1646969048909,15.14247957,82.023,81.96,18.2959]
[1646969049110,51.06129618,82.022,81.96,18.2959]
[1646969049312,12.098,82.021,81.96,18.2959]
[1646969049613,38.57009618,82.021,81.96,18.2959]
[1646969049914,26.47209618,82.02,81.96,18.2959]
[1646969050113,12.098,82.019,81.95,18.2978]
[1646969050312,38.57009618,82.019,81.918,48.7153]
[1646969050514,38.57009618,82.019,81.919,6.0]
[1646969050515,137.80891188,82.018,81.919,6.0]
[1646969050713,122.2,82.016,81.901,12.74098778]
[1646969050914,6.0,82.015,81.911,46.5235925]
[1646969051115,6.099,82.014,81.91,18.3054]
[1646969051415,122.2,81.999,81.91,18.3054]
[1646969051615,122.2,81.997,81.91,18.3054]
[1646969051817,6.0,81.996,81.91,18.3054]
[1646969052014,57.29072753,81.994,81.91,18.3054]
[1646969052219,14.54,81.98,81.908,47.45301959]
[1646969052415,18.78438045,81.978,81.908,47.45301959]
[1646969052614,12.101,81.977,81.908,47.45301959]
[1646969052914,15.14547957,81.977,81.908,47.45301959]
[1646969053117,25.61607957,81.976,81.908,47.45301959]
[1646969053413,12.101,81.975,81.908,47.45301959]
[1646969053816,12.101,81.975,81.92,18.3041]
[1646969054215,3.04447957,81.974,81.908,47.45301959]
[1646969054415,12.101,81.973,81.908,47.45301959]
[1646969054620,35.52861661,81.973,81.908,47.45301959]
[1646969054822,26.47209618,81.972,81.908,47.45301959]
[1646969055025,14.54,81.97,81.908,47.45301959]
[1646969055216,12.102,81.969,81.908,47.45301959]
[1646969055416,15.14647957,81.969,81.908,47.45301959]
[1646969055819,3.04447957,81.968,81.91,18.307]
[1646969056018,12.102,81.967,81.91,18.307]
[1646969056422,3.04447957,81.966,81.91,18.307]
[1646969056622,67.57456004,81.965,81.91,18.307]
[1646969057021,70.61903961,81.965,81.91,18.307]
[1646969062131,70.61903961,81.965,81.92,18.3046]
[1646969062346,70.61903961,81.965,81.921,34.89187241]
[1646969065352,24.5075,81.966,81.921,34.89187241]
[1646969065553,3.04447957,81.98,81.922,6.0]
[1646969065850,3.04447957,81.99,81.922,6.0]
[1646969066053,23.1014,81.994,81.922,6.0]
[1646969066251,61.14053308,81.993,81.922,6.0]
[1646969066454,6.0,81.992,81.922,6.0]
[1646969066651,6.099,81.991,81.95,18.2972]
[1646969066855,6.099,81.991,81.951,47.45301959]
[1646969067551,6.0,81.99,81.951,47.45301959]
[1646969067753,6.0,81.991,81.97,18.293]
[1646969067955,6.0,81.991,81.951,47.45301959]
[1646969068157,6.099,82.013,81.952,6.0]
[1646969068356,6.0,82.012,81.952,6.0]
[1646969068555,6.098,82.011,81.952,6.0]
[1646969068755,6.0,82.01,81.952,6.0]
[1646969068956,6.098,82.009,81.96,18.295]
[1646969069156,57.99803621,82.007,81.96,18.295]
[1646969069357,12.098,82.006,81.96,18.295]
[1646969071656,3.04447957,82.005,81.96,18.295]
[1646969071857,12.098,82.004,81.96,18.295]
[1646969072860,12.098,82.004,81.97,18.2931]
[1646969073059,6.0,82.004,81.97,18.2931]
[1646969073359,6.0,82.005,81.97,18.2931]
[1646969074362,57.99803621,82.007,81.97,18.2931]
[1646969074560,6.0,82.006,81.964,34.89187241]
[1646969075062,6.0,82.006,81.96,18.2949]
[1646969075563,12.098,82.006,81.96,18.2949]
[1646969075763,12.098,82.006,81.97,18.2929]
[1646969076462,12.098,82.006,81.97,17.7929]
[1646969076663,6.098,82.006,81.97,17.7929]
[1646969077361,6.0,82.005,81.97,17.7929]
[1646969077562,12.098,82.004,81.97,17.7929]
[1646969077762,6.098,82.006,81.97,17.7929]
[1646969077964,6.0,82.005,81.97,17.7929]
[1646969078163,57.99803621,82.007,81.97,17.7929]
[1646969078667,57.99803621,82.007,81.981,34.56096815]
[1646969079467,24.1942,82.009,81.981,34.56096815]
[1646969080268,6.097,82.032,81.981,34.56096815]
[1646969080466,89.42365489,82.031,81.99,18.2887]
[1646969080766,6.096,82.03,81.99,18.2887]
[1646969081466,6.0,82.029,81.99,18.2887]
[1646969081670,6.096,82.028,81.99,18.2887]
[1646969081867,6.096,82.03,81.99,18.2887]
[1646969082475,6.0,82.029,81.99,18.2887]
[1646969082668,6.096,82.03,81.99,18.2887]
[1646969082669,6.096,82.028,81.99,18.2887]
[1646969082868,6.096,82.03,81.99,18.2887]
[1646969083671,6.0,82.029,81.99,18.2887]
[1646969083874,6.096,82.028,81.99,18.2887]
[1646969084270,6.0,82.027,81.99,18.2887]
[1646969084474,6.096,82.026,81.99,18.2887]
[1646969084674,6.0,82.025,81.99,18.2887]
[1646969084874,6.0,82.027,81.99,18.2887]
[1646969085072,12.096,82.026,81.99,18.2887]
[1646969085272,6.096,82.026,81.99,18.2887]
[1646969085572,6.096,82.03,81.99,18.2887]
[1646969085970,6.0,82.029,81.99,18.2887]
[1646969086176,6.096,82.028,81.99,18.2887]
[1646969086379,6.096,82.03,81.99,18.2887]
[1646969086976,6.0,82.029,81.99,18.2887]
[1646969087277,6.096,82.028,81.99,18.2887]
[1646969087480,6.0,82.027,81.99,18.2887]
[1646969087679,6.096,82.026,81.99,18.2887]
[1646969087980,6.0,82.025,81.99,18.2887]
[1646969088180,6.096,82.03,81.99,18.2887]
[1646969088380,6.0,82.029,81.99,18.2887]
[1646969088601,6.096,82.028,81.99,18.2887]
[1646969088802,6.0,82.027,81.99,18.2887]
[1646969089203,5.5,82.026,81.99,18.2887]
[1646969089804,6.096,82.03,81.99,18.2887]
[1646969090709,6.096,82.03,81.971,24.459]
[1646969090905,6.096,82.03,81.98,18.2905]
[1646969091109,6.096,82.03,81.971,24.459]
[1646969091308,6.0,82.029,81.971,24.459]
[1646969091613,6.097,82.028,81.971,24.459]
[1646969091812,6.0,82.027,81.971,24.459]
[1646969092011,6.097,82.026,81.971,24.459]
[1646969092209,6.0,82.025,81.971,24.459]
[1646969092410,6.097,82.024,81.971,24.459]
[1646969092709,6.0,82.023,81.971,24.459]
[1646969092909,6.097,82.022,81.971,24.459]
[1646969093110,6.0,82.021,81.971,24.459]
[1646969093308,6.097,82.02,81.971,24.459]
[1646969093511,6.0,82.019,81.971,24.459]
[1646969093709,16.53035309,82.017,81.971,24.459]
[1646969093910,12.098,82.016,81.971,24.459]
[1646969094111,6.098,82.016,81.971,24.459]
[1646969100123,6.0,82.015,81.971,24.459]
[1646969100424,6.098,82.014,81.971,24.459]
[1646969100624,6.098,82.016,81.971,24.459]
[1646969101031,6.0,82.015,81.96,18.2927]
[1646969101237,6.0,82.015,81.951,23.6007]
[1646969101238,6.098,82.014,81.961,6.0]
[1646969101428,6.0,82.013,81.952,6.0]
[1646969101630,6.098,82.012,81.952,6.0]
[1646969101831,6.0,82.011,81.952,6.0]
[1646969102029,6.098,82.01,81.952,6.0]
[1646969102330,6.098,82.01,81.953,52.79323105]
[1646969102533,6.0,82.009,81.954,6.0]
[1646969102733,28.6456,82.008,81.954,6.0]
[1646969102930,6.0,82.007,81.954,6.0]
[1646969103129,28.6456,82.008,81.954,6.0]
[1646969103130,6.099,82.006,81.954,6.0]
[1646969103330,6.099,82.007,81.954,6.0]
[1646969103732,6.0,82.006,81.954,6.0]
[1646969104032,49.6552024,82.004,81.954,6.0]
[1646969104231,6.099,82.003,81.954,6.0]
[1646969104434,6.099,82.003,81.96,18.2918]
[1646969104634,6.099,82.003,81.961,6.0]
[1646969105632,6.0,82.002,81.961,6.0]
[1646969105833,6.098,82.001,81.954,6.0]
[1646969106032,6.099,82.003,81.954,6.0]
[1646969107237,6.099,82.003,81.96,18.2932]
[1646969107434,6.099,82.003,81.961,6.0]
[1646969109537,6.099,82.003,81.953,6.0]
[1646969110638,18.2984,82.0,81.953,6.0]
[1646969110839,6.099,81.999,81.953,6.0]
[1646969111037,6.099,81.999,81.952,24.6217]
[1646969111038,6.0,81.998,81.952,24.6217]
[1646969111237,29.9594,81.998,81.952,24.6217]
[1646969112039,6.099,81.997,81.952,24.6217]
[1646969112238,6.0,81.996,81.952,24.6217]
[1646969112437,6.099,81.995,81.952,24.6217]
[1646969112639,6.0,81.994,81.952,24.6217]
[1646969112838,6.099,81.993,81.952,24.6217]
[1646969113039,26.41990558,81.991,81.952,24.6217]
[1646969113239,12.099,81.99,81.952,24.6217]
[1646969113645,12.099,81.99,81.936,64.2650538]
[1646969113841,12.099,81.99,81.94,18.2981]
[1646969114041,6.0,81.99,81.94,18.2981]
[1646969114444,26.41990558,81.991,81.94,18.2981]